fUSD/lending_fUSD_20260703
["ID","MTS","AMOUNT","RATE_DAILY","PERIOD"]
[426940443,1783035038000,-623.5,0.00025317,7]
[426940445,1783035038000,-500.0,0.00025425,2]
[426940446,1783035038000,-156.36450896,0.00025568,2]
[426940444,1783035038000,-150.0,0.00025373,2]
[426940447,1783035038000,-634.45603404,0.00025583,2]
[426940437,1783035038000,-286.0,0.00025,2]
[426940525,1783035039000,-500.0,0.00025683,2]
[426940524,1783035039000,-500.0,0.00025683,2]
[426940522,1783035039000,-500.0,0.00025683,2]
[426940523,1783035039000,-500.0,0.00025683,2]
[426940520,1783035039000,-500.0,0.00025683,2]
[426940519,1783035039000,-500.0,0.00025683,2]
[426940518,1783035039000,-500.0,0.00025683,2]
[426940517,1783035039000,-500.0,0.00025683,2]
[426940521,1783035039000,-500.0,0.00025683,2]
[426940527,1783035039000,-500.0,0.00025683,2]
[426940516,1783035039000,-177.43562649,0.00025683,2]
[426940515,1783035039000,-500.0,0.00025683,2]
[426940533,1783035039000,-500.0,0.00025683,2]
[426940528,1783035039000,-500.0,0.00025683,2]
[426940532,1783035039000,-500.0,0.00025683,2]
[426940530,1783035039000,-500.0,0.00025683,2]
[426940531,1783035039000,-500.0,0.00025683,2]
[426940529,1783035039000,-500.0,0.00025683,2]
[426940534,1783035039000,-500.0,0.00025683,2]
[426940536,1783035039000,-500.0,0.00025683,2]
[426940537,1783035039000,-454.61871417,0.00025683,2]
[426940535,1783035039000,-500.0,0.00025683,2]
[426940538,1783035039000,-500.0,0.00025683,2]
[426940539,1783035039000,-500.0,0.00025683,2]
[426940545,1783035039000,-500.0,0.00025683,2]
[426940514,1783035039000,-500.0,0.00025683,2]
[426940526,1783035039000,-500.0,0.00025683,2]
[426940513,1783035039000,-500.0,0.00025683,2]
[426940487,1783035039000,-500.0,0.00025683,2]
[426940510,1783035039000,-500.0,0.00025683,2]
[426940540,1783035039000,-372.34176263,0.00025683,2]
[426940467,1783035039000,-500.0,0.00025683,2]
[426940469,1783035039000,-500.0,0.00025683,2]
[426940468,1783035039000,-500.0,0.00025683,2]
[426940470,1783035039000,-500.0,0.00025683,2]
[426940471,1783035039000,-162.32479247,0.00025683,2]
[426940473,1783035039000,-500.0,0.00025683,2]
[426940477,1783035039000,-500.0,0.00025683,2]
[426940479,1783035039000,-152.81031555,0.00025683,2]
[426940481,1783035039000,-500.0,0.00025683,2]
[426940483,1783035039000,-500.0,0.00025683,2]
[426940490,1783035039000,-500.0,0.00025683,2]
[426940488,1783035039000,-500.0,0.00025683,2]
[426940485,1783035039000,-500.0,0.00025683,2]
[426940492,1783035039000,-500.0,0.00025683,2]
[426940494,1783035039000,-500.0,0.00025683,2]
[426940497,1783035039000,-500.0,0.00025683,2]
[426940499,1783035039000,-500.0,0.00025683,2]
[426940501,1783035039000,-500.0,0.00025683,2]
[426940503,1783035039000,-500.0,0.00025683,2]
[426940506,1783035039000,-500.0,0.00025683,2]
[426940505,1783035039000,-500.0,0.00025683,2]
[426940504,1783035039000,-500.0,0.00025683,2]
[426940508,1783035039000,-500.0,0.00025683,2]
[426940507,1783035039000,-500.0,0.00025683,2]
[426940509,1783035039000,-500.0,0.00025683,2]
[426940511,1783035039000,-500.0,0.00025683,2]
[426940512,1783035039000,-500.0,0.00025683,2]
[426940541,1783035039000,-500.0,0.00025683,2]
[426940475,1783035039000,-500.0,0.00025683,2]
[426940542,1783035039000,-500.0,0.00025683,2]
[426940572,1783035039000,-1077.97733514,0.00025683,2]
[426940579,1783035039000,-500.0,0.00025683,2]
[426940576,1783035039000,-1077.97733514,0.00025683,2]
[426940575,1783035039000,-500.0,0.00025683,2]
[426940570,1783035039000,-500.0,0.00025683,2]
[426940578,1783035039000,-500.0,0.00025683,2]
[426940582,1783035039000,-1077.97733514,0.00025683,2]
[426940584,1783035039000,-1077.97733514,0.00025683,2]
[426940585,1783035039000,-500.0,0.00025683,2]
[426940583,1783035039000,-500.0,0.00025683,2]
[426940586,1783035039000,-1077.97733514,0.00025683,2]
[426940588,1783035039000,-500.0,0.00025683,2]
[426940589,1783035039000,-500.0,0.00025683,2]
[426940587,1783035039000,-500.0,0.00025683,2]
[426940591,1783035039000,-500.0,0.00025683,2]
[426940590,1783035039000,-1077.97733514,0.00025683,2]
[426940594,1783035039000,-500.0,0.00025683,2]
[426940593,1783035039000,-500.0,0.00025683,2]
[426940592,1783035039000,-450.0,0.00025683,2]
[426940595,1783035039000,-500.0,0.00025683,2]
[426940598,1783035039000,-1077.97733514,0.00025683,2]
[426940602,1783035039000,-500.0,0.00025683,2]
[426940597,1783035039000,-500.0,0.00025683,2]
[426940599,1783035039000,-500.0,0.00025683,2]
[426940546,1783035039000,-500.0,0.00025683,2]
[426940601,1783035039000,-1077.97733514,0.00025683,2]
[426940600,1783035039000,-500.0,0.00025683,2]
[426940580,1783035039000,-1077.97733514,0.00025683,2]
[426940574,1783035039000,-500.0,0.00025683,2]
[426940596,1783035039000,-1077.97733514,0.00025683,2]
[426940581,1783035039000,-500.0,0.00025683,2]
[426940571,1783035039000,-500.0,0.00025683,2]
[426940544,1783035039000,-500.0,0.00025683,2]
[426940548,1783035039000,-500.0,0.00025683,2]
[426940547,1783035039000,-500.0,0.00025683,2]
[426940550,1783035039000,-500.0,0.00025683,2]
[426940549,1783035039000,-500.0,0.00025683,2]
[426940552,1783035039000,-500.0,0.00025683,2]
[426940553,1783035039000,-500.0,0.00025683,2]
[426940554,1783035039000,-500.0,0.00025683,2]
[426940557,1783035039000,-500.0,0.00025683,2]
[426940551,1783035039000,-500.0,0.00025683,2]
[426940556,1783035039000,-500.0,0.00025683,2]
[426940555,1783035039000,-500.0,0.00025683,2]
[426940543,1783035039000,-500.0,0.00025683,2]
[426940559,1783035039000,-500.0,0.00025683,2]
[426940561,1783035039000,-500.0,0.00025683,2]
[426940577,1783035039000,-500.0,0.00025683,2]
[426940568,1783035039000,-532.78369113,0.00025683,2]
[426940566,1783035039000,-500.0,0.00025683,2]
[426940565,1783035039000,-500.0,0.00025683,2]
[426940564,1783035039000,-500.0,0.00025683,2]
[426940573,1783035039000,-500.0,0.00025683,2]
[426940567,1783035039000,-614.2163764,0.00025683,2]
[426940562,1783035039000,-500.0,0.00025683,2]
[426940563,1783035039000,-500.0,0.00025683,2]
[426940560,1783035039000,-500.0,0.00025683,2]
[426940558,1783035039000,-500.0,0.00025683,2]
[426940569,1783035039000,-1077.97733514,0.00025683,2]
[426940642,1783035040000,-500.0,0.00025683,2]
[426940641,1783035040000,-1077.97733514,0.00025683,2]
[426940643,1783035040000,-1077.97733514,0.00025683,2]
[426940639,1783035040000,-1077.97733514,0.00025683,2]
[426940638,1783035040000,-438.6039585,0.00025683,2]
[426940634,1783035040000,-500.0,0.00025683,2]
[426940636,1783035040000,-1077.97733514,0.00025683,2]
[426940635,1783035040000,-500.0,0.00025683,2]
[426940640,1783035040000,-500.0,0.00025683,2]
[426940637,1783035040000,-500.0,0.00025683,2]
[426940633,1783035040000,-500.0,0.00025683,2]
[426940651,1783035040000,-1073.52087863,0.00025683,2]
[426940646,1783035040000,-500.0,0.00025683,2]
[426940645,1783035040000,-1077.97733514,0.00025683,2]
[426940647,1783035040000,-1077.97733514,0.00025683,2]
[426940648,1783035040000,-1077.97733514,0.00025683,2]
[426940649,1783035040000,-500.0,0.00025683,2]
[426940650,1783035040000,-1077.97733514,0.00025683,2]
[426940654,1783035040000,-1073.52087863,0.00025683,2]
[426940653,1783035040000,-1073.52087863,0.00025683,2]
[426940652,1783035040000,-1073.52087863,0.00025683,2]
[426940655,1783035040000,-1073.52087863,0.00025683,2]
[426940657,1783035040000,-1073.52087863,0.00025683,2]
[426940632,1783035040000,-1077.97733514,0.00025683,2]
[426940644,1783035040000,-500.0,0.00025683,2]
[426940630,1783035040000,-1077.97733514,0.00025683,2]
[426940614,1783035040000,-1077.97733514,0.00025683,2]
[426940629,1783035040000,-500.0,0.00025683,2]
[426940604,1783035040000,-1077.97733514,0.00025683,2]
[426940605,1783035040000,-500.0,0.00025683,2]
[426940603,1783035040000,-500.0,0.00025683,2]
[426940607,1783035040000,-500.0,0.00025683,2]
[426940606,1783035040000,-1077.97733514,0.00025683,2]
[426940609,1783035040000,-1077.97733514,0.00025683,2]
[426940610,1783035040000,-500.0,0.00025683,2]
[426940611,1783035040000,-1077.97733514,0.00025683,2]
[426940618,1783035040000,-500.0,0.00025683,2]
[426940616,1783035040000,-1077.97733514,0.00025683,2]
[426940612,1783035040000,-500.0,0.00025683,2]
[426940631,1783035040000,-500.0,0.00025683,2]
[426940617,1783035040000,-1077.97733514,0.00025683,2]
[426940615,1783035040000,-500.0,0.00025683,2]
[426940620,1783035040000,-500.0,0.00025683,2]
[426940621,1783035040000,-1077.97733514,0.00025683,2]
[426940619,1783035040000,-1077.97733514,0.00025683,2]
[426940622,1783035040000,-500.0,0.00025683,2]
[426940623,1783035040000,-1077.97733514,0.00025683,2]
[426940625,1783035040000,-1077.97733514,0.00025683,2]
[426940624,1783035040000,-500.0,0.00025683,2]
[426940627,1783035040000,-1077.97733514,0.00025683,2]
[426940626,1783035040000,-500.0,0.00025683,2]
[426940628,1783035040000,-1077.97733514,0.00025683,2]
[426940613,1783035040000,-500.0,0.00025683,2]
[426940659,1783035040000,-1073.52087863,0.00025683,2]
[426940656,1783035040000,-1073.52087863,0.00025683,2]
[426940661,1783035040000,-1073.52087863,0.00025683,2]
[426940692,1783035040000,-500.0,0.00025683,2]
[426940694,1783035040000,-190.20427482,0.00025685,2]
[426940695,1783035040000,-6836.9661,0.00025686,2]
[426940693,1783035040000,-2500.0,0.00025685,2]
[426940697,1783035040000,-15612.8082208,0.00025786,2]
[426940696,1783035040000,-1244.5852725,0.00025786,2]
[426940698,1783035040000,-2947.5407219,0.00025786,2]
[426940699,1783035040000,-59539.9784154,0.00025786,2]
[426940701,1783035040000,-156.36450896,0.00025842,2]
[426940700,1783035040000,-263.9349196,0.00025786,2]
[426940703,1783035040000,-150.0,0.00025994,5]
[426940688,1783035040000,-500.0,0.00025683,2]
[426940704,1783035040000,-200.0,0.00026,2]
[426940705,1783035040000,-286.0,0.00026,2]
[426940708,1783035040000,-1794.0,0.00026017,2]
[426940707,1783035040000,-255.0,0.00026,2]
[426940710,1783035040000,-1829.0,0.00026072,2]
[426940712,1783035040000,-685.0,0.0002615,5]
[426940711,1783035040000,-156.36450896,0.00026116,2]
[426940709,1783035040000,-1799.0,0.00026072,2]
[426940715,1783035040000,-686.0,0.00026196,5]
[426940714,1783035040000,-686.0,0.00026172,5]
[426940713,1783035040000,-170.64087513,0.00026163,2]
[426940658,1783035040000,-1073.52087863,0.00025683,2]
[426940706,1783035040000,-242.0,0.00026,2]
[426940691,1783035040000,-500.0,0.00025683,2]
[426940702,1783035040000,-156.93261289,0.00025842,2]
[426940689,1783035040000,-500.0,0.00025683,2]
[426940660,1783035040000,-1073.52087863,0.00025683,2]
[426940690,1783035040000,-500.0,0.00025683,2]
[426940665,1783035040000,-1073.52087863,0.00025683,2]
[426940670,1783035040000,-1073.52087863,0.00025683,2]
[426940663,1783035040000,-1073.52087863,0.00025683,2]
[426940667,1783035040000,-1073.52087863,0.00025683,2]
[426940662,1783035040000,-1073.52087863,0.00025683,2]
[426940664,1783035040000,-1073.52087863,0.00025683,2]
[426940671,1783035040000,-1073.52087863,0.00025683,2]
[426940673,1783035040000,-1073.52087863,0.00025683,2]
[426940674,1783035040000,-1073.52087863,0.00025683,2]
[426940672,1783035040000,-1073.52087863,0.00025683,2]
[426940675,1783035040000,-1073.52087863,0.00025683,2]
[426940668,1783035040000,-1073.52087863,0.00025683,2]
[426940681,1783035040000,-600.0,0.00025683,2]
[426940687,1783035040000,-500.0,0.00025683,2]
[426940684,1783035040000,-500.0,0.00025683,2]
[426940685,1783035040000,-500.0,0.00025683,2]
[426940683,1783035040000,-500.0,0.00025683,2]
[426940682,1783035040000,-500.0,0.00025683,2]
[426940686,1783035040000,-500.0,0.00025683,2]
[426940679,1783035040000,-500.0,0.00025683,2]
[426940676,1783035040000,-1073.52087863,0.00025683,2]
[426940677,1783035040000,-500.0,0.00025683,2]
[426940678,1783035040000,-500.0,0.00025683,2]
[426940680,1783035040000,-500.0,0.00025683,2]
[426940758,1783035041000,-211.71321598,0.00027372,2]
[426940759,1783035041000,-548.16,0.00027397,2]
[426940755,1783035041000,-679.0,0.00027166,5]
[426940757,1783035041000,-734.8,0.00027249,2]
[426940753,1783035041000,-441.43113121,0.0002713,2]
[426940752,1783035041000,-1230.0,0.00027076,2]
[426940756,1783035041000,-156.36450896,0.00027212,2]
[426940750,1783035041000,-154.98925467,0.00027024,2]
[426940749,1783035041000,-190.34264801,0.00027007,2]
[426940751,1783035041000,-150.0,0.00027034,5]
[426940761,1783035041000,-1500.0,0.00027397,2]
[426940754,1783035041000,-200.0,0.00027132,2]
[426940760,1783035041000,-196.44061727,0.00027397,2]
[426940774,1783035041000,-151.0,0.00027397,5]
[426940762,1783035041000,-675.0,0.00027397,5]
[426940765,1783035041000,-669.0,0.00027397,5]
[426940764,1783035041000,-1067.58406073,0.00027397,5]
[426940766,1783035041000,-150.0,0.00027397,5]
[426940768,1783035041000,-151.0,0.00027397,5]
[426940769,1783035041000,-669.0,0.00027397,5]
[426940767,1783035041000,-675.0,0.00027397,5]
[426940771,1783035041000,-664.0,0.00027397,5]
[426940770,1783035041000,-151.0,0.00027397,5]
[426940772,1783035041000,-152.0,0.00027397,5]
[426940773,1783035041000,-665.0,0.00027397,5]
[426940776,1783035041000,-3957.28,0.00027397,10]
[426940746,1783035041000,-286.0,0.00027,2]
[426940763,1783035041000,-663.0,0.00027397,5]
[426940747,1783035041000,-242.0,0.00027,2]
[426940719,1783035041000,-156.36450896,0.0002639,2]
[426940744,1783035041000,-295.2370037,0.00026998,2]
[426940718,1783035041000,-682.0,0.00026276,5]
[426940716,1783035041000,-682.0,0.00026233,5]
[426940717,1783035041000,-196.12678953,0.00026261,5]
[426940721,1783035041000,-634.45603404,0.00026639,2]
[426940720,1783035041000,-1451.74685342,0.00026475,2]
[426940722,1783035041000,-150.0,0.00026641,2]
[426940723,1783035041000,-156.36450896,0.00026664,2]
[426940724,1783035041000,-190.2042748,0.00026725,2]
[426940726,1783035041000,-156.36450896,0.00026938,2]
[426940725,1783035041000,-403.0,0.00026822,2]
[426940728,1783035041000,-190.49391047,0.00026998,2]
[426940727,1783035041000,-218.13771151,0.00026988,2]
[426940729,1783035041000,-245.47481237,0.00026998,2]
[426940748,1783035041000,-255.0,0.00027,2]
[426940731,1783035041000,-274.89978669,0.00026998,2]
[426940733,1783035041000,-246.47167041,0.00026998,2]
[426940732,1783035041000,-250.78692766,0.00026998,2]
[426940734,1783035041000,-204.12687834,0.00026998,2]
[426940735,1783035041000,-255.51789374,0.00026998,2]
[426940736,1783035041000,-214.66778038,0.00026998,2]
[426940737,1783035041000,-224.79047628,0.00026998,2]
[426940738,1783035041000,-233.73425612,0.00026998,2]
[426940741,1783035041000,-341.28175026,0.00026998,2]
[426940740,1783035041000,-169.74676424,0.00026998,2]
[426940743,1783035041000,-213.28225698,0.00026998,2]
[426940742,1783035041000,-218.19778097,0.00026998,2]
[426940739,1783035041000,-226.54096389,0.00026998,2]
[426940745,1783035041000,-200.0,0.00027,2]
[426940730,1783035041000,-269.72003735,0.00026998,2]
[426940775,1783035041000,-4748.73,0.00027397,10]
[426940780,1783035041000,-500.0,0.00027454,120]
[426940779,1783035041000,-500.0,0.00027454,120]
[426940811,1783035041000,-501.57385533,0.00027556,2]
[426940813,1783035041000,-492.94334082,0.00027556,2]
[426940814,1783035041000,-408.25375667,0.00027556,2]
[426940815,1783035041000,-511.03578748,0.00027556,2]
[426940818,1783035041000,-208.00779828,0.00027556,2]
[426940817,1783035041000,-449.58095256,0.00027556,2]
[426940816,1783035041000,-429.33556075,0.00027556,2]
[426940819,1783035041000,-239.58861894,0.00027556,2]
[426940820,1783035041000,-453.08192778,0.00027556,2]
[426940821,1783035041000,-339.49352847,0.00027556,2]
[426940824,1783035041000,-426.56451396,0.00027556,2]
[426940823,1783035041000,-436.39556194,0.00027556,2]
[426940822,1783035041000,-511.92262538,0.00027556,2]
[426940827,1783035041000,-294.85914016,0.00027556,2]
[426940832,1783035041000,-316.7797948,0.00027556,2]
[426940826,1783035041000,-590.4740074,0.00027556,2]
[426940828,1783035041000,-189.7183914,0.00027556,2]
[426940825,1783035041000,-230.10383159,0.00027556,2]
[426940830,1783035041000,-248.12957447,0.00027556,2]
[426940829,1783035041000,-285.47495541,0.00027556,2]
[426940831,1783035041000,-203.55116765,0.00027556,2]
[426940834,1783035041000,-232.2049184,0.00027564,2]
[426940835,1783035041000,-240.68752877,0.00027564,2]
[426940833,1783035041000,-234.86551947,0.00027564,2]
[426940836,1783035041000,-278.26313264,0.00027564,2]
[426940838,1783035041000,-291.09586794,0.00027564,2]
[426940777,1783035041000,-3297.73,0.00027397,10]
[426940812,1783035041000,-239.94227655,0.00027556,2]
[426940809,1783035041000,-299.39033585,0.00027556,2]
[426940837,1783035041000,-316.38237996,0.00027564,2]
[426940807,1783035041000,-539.44007469,0.00027556,2]
[426940810,1783035041000,-298.22467967,0.00027556,2]
[426940778,1783035041000,-500.0,0.00027454,120]
[426940781,1783035041000,-500.0,0.00027454,120]
[426940786,1783035041000,-20636.0334,0.00027456,2]
[426940785,1783035041000,-2000.0,0.00027456,2]
[426940782,1783035041000,-500.0,0.00027455,120]
[426940784,1783035041000,-500.0,0.00027455,7]
[426940788,1783035041000,-1627.25925004,0.000275,7]
[426940787,1783035041000,-156.36450896,0.00027486,2]
[426940789,1783035041000,-467.46851225,0.00027544,2]
[426940790,1783035041000,-436.27542303,0.00027545,2]
[426940791,1783035041000,-182.41,0.00027552,30]
[426940793,1783035041000,-500.0,0.00027555,120]
[426940792,1783035041000,-244.39,0.00027553,30]
[426940783,1783035041000,-1000.0,0.00027455,2]
[426940794,1783035041000,-1000.0,0.00027555,2]
[426940795,1783035041000,-500.0,0.00027555,7]
[426940803,1783035041000,-490.94962475,0.00027556,2]
[426940805,1783035041000,-164.22257492,0.00027556,2]
[426940806,1783035041000,-357.03717013,0.00027556,2]
[426940802,1783035041000,-380.98782093,0.00027556,2]
[426940804,1783035041000,-305.0985428,0.00027556,2]
[426940801,1783035041000,-377.35381921,0.00027556,2]
[426940798,1783035041000,-154.07256398,0.00027556,2]
[426940799,1783035041000,-230.48162992,0.00027556,2]
[426940808,1783035041000,-549.79957337,0.00027556,2]
[426940796,1783035041000,-1681.0,0.00027555,5]
[426940800,1783035041000,-173.2147718,0.00027556,2]
[426940797,1783035041000,-335.83003669,0.00027556,2]
[426940867,1783035042000,-244.4,0.00028356,2]
[426940878,1783035042000,-156.36450909,0.00028582,2]
[426940869,1783035042000,-745.8,0.00028364,7]
[426940870,1783035042000,-1190.45,0.00028364,7]
[426940872,1783035042000,-200.0,0.00028422,2]
[426940873,1783035042000,-548.16,0.00028493,2]
[426940875,1783035042000,-244.39,0.00028517,30]
[426940874,1783035042000,-150.0,0.00028516,5]
[426940877,1783035042000,-215.6984666,0.00028573,2]
[426940879,1783035042000,-566.63985286,0.00028658,2]
[426940871,1783035042000,-18393.77,0.00028364,7]
[426940885,1783035042000,-190.2042748,0.00028805,2]
[426940881,1783035042000,-441.43113121,0.00028675,2]
[426940880,1783035042000,-1000.0,0.00028658,2]
[426940883,1783035042000,-408.44680273,0.00028795,14]
[426940882,1783035042000,-244.39,0.00028678,7]
[426940886,1783035042000,-211.90596589,0.00028812,120]
[426940884,1783035042000,-611.01198928,0.00028795,14]
[426940888,1783035042000,-244.39,0.00028839,2]
[426940887,1783035042000,-191.50549013,0.00028812,120]
[426940891,1783035042000,-260.0,0.00029,2]
[426940890,1783035042000,-300.0,0.00029,2]
[426940889,1783035042000,-218.0,0.00029,2]
[426940868,1783035042000,-6176.42,0.00028364,7]
[426940876,1783035042000,-211.71321598,0.00028524,14]
[426940862,1783035042000,-244.39,0.00028196,7]
[426940851,1783035042000,-250.0,0.0002784,2]
[426940866,1783035042000,-244.39,0.00028356,2]
[426940893,1783035042000,-500.0,0.00029,7]
[426940842,1783035042000,-236.71764492,0.00027564,2]
[426940840,1783035042000,-265.56293765,0.00027564,2]
[426940839,1783035042000,-307.83283524,0.00027564,2]
[426940841,1783035042000,-243.40959163,0.00027564,2]
[426940843,1783035042000,-152.54040332,0.00027564,2]
[426940845,1783035042000,-380.68529601,0.00027564,2]
[426940844,1783035042000,-305.75045792,0.00027564,2]
[426940846,1783035042000,-215.6984666,0.00027573,2]
[426940848,1783035042000,-156.36450896,0.0002776,2]
[426940847,1783035042000,-244.39,0.00027713,7]
[426940850,1783035042000,-264.0,0.0002784,2]
[426940849,1783035042000,-190.2042748,0.00027765,2]
[426940852,1783035042000,-244.39,0.00027874,2]
[426940853,1783035042000,-548.16,0.00027945,2]
[426940855,1783035042000,-200.0,0.00028,2]
[426940854,1783035042000,-150.0,0.00027973,2]
[426940856,1783035042000,-286.0,0.00028,2]
[426940857,1783035042000,-242.0,0.00028,2]
[426940860,1783035042000,-244.39,0.00028035,30]
[426940858,1783035042000,-255.0,0.00028,2]
[426940859,1783035042000,-156.36450896,0.00028034,2]
[426940861,1783035042000,-150.59046719,0.00028136,2]
[426940863,1783035042000,-231.53024862,0.00028295,14]
[426940865,1783035042000,-193.0,0.00028334,5]
[426940864,1783035042000,-156.36450896,0.00028308,2]
[426940892,1783035042000,-264.0,0.00029,2]
[426940896,1783035042000,-500.0,0.00029,7]
[426940894,1783035042000,-500.0,0.00029,7]
[426940925,1783035042000,-15612.8082208,0.00029749,2]
[426940928,1783035042000,-190.2042748,0.00029845,2]
[426940927,1783035042000,-2947.5407219,0.00029799,2]
[426940931,1783035042000,-431.29922464,0.000299,2]
[426940932,1783035042000,-431.29922464,0.000299,2]
[426940930,1783035042000,-431.29922468,0.000299,2]
[426940929,1783035042000,-151.18,0.00029897,30]
[426940933,1783035042000,-431.29922464,0.000299,2]
[426940934,1783035042000,-431.29922464,0.000299,2]
[426940936,1783035042000,-431.29922464,0.000299,2]
[426940935,1783035042000,-431.29922464,0.000299,2]
[426940924,1783035042000,-211.71321598,0.00029677,120]
[426940939,1783035042000,-431.29922464,0.000299,2]
[426940941,1783035042000,-242.80709731,0.00029957,2]
[426940940,1783035042000,-258.174832,0.00029957,2]
[426940944,1783035042000,-500.0,0.00029999,120]
[426940942,1783035042000,-734.8,0.00029974,120]
[426940945,1783035042000,-500.0,0.00029999,120]
[426940943,1783035042000,-1638.0,0.00029991,5]
[426940946,1783035042000,-218.54221675,0.00029999,120]
[426940949,1783035042000,-500.0,0.00029999,120]
[426940947,1783035042000,-500.0,0.00029999,120]
[426940948,1783035042000,-500.0,0.00029999,120]
[426940895,1783035042000,-500.0,0.00029,7]
[426940938,1783035042000,-431.29922464,0.000299,2]
[426940926,1783035042000,-518.5771969,0.00029799,2]
[426940937,1783035042000,-431.29922464,0.000299,2]
[426940923,1783035042000,-154.98925467,0.00029652,2]
[426940897,1783035042000,-500.0,0.00029,7]
[426940922,1783035042000,-241.0,0.00029633,10]
[426940898,1783035042000,-500.0,0.00029,7]
[426940900,1783035042000,-500.0,0.00029,7]
[426940899,1783035042000,-1018.43,0.00029,2]
[426940902,1783035042000,-500.0,0.00029,7]
[426940901,1783035042000,-500.0,0.00029,7]
[426940903,1783035042000,-500.0,0.00029,7]
[426940904,1783035042000,-532.11,0.00029,7]
[426940906,1783035042000,-500.0,0.00029,7]
[426940907,1783035042000,-500.0,0.00029,7]
[426940910,1783035042000,-500.0,0.00029,7]
[426940908,1783035042000,-500.0,0.00029,7]
[426940905,1783035042000,-174.63,0.00029,7]
[426940920,1783035042000,-180.1,0.00029478,120]
[426940921,1783035042000,-548.16,0.00029588,2]
[426940909,1783035042000,-500.0,0.00029,7]
[426940919,1783035042000,-150.0,0.00029372,2]
[426940918,1783035042000,-826.7193,0.00029295,14]
[426940915,1783035042000,-1271.38,0.00029,115]
[426940917,1783035042000,-280.78476816,0.00029252,2]
[426940914,1783035042000,-1552.19,0.00029,115]
[426940913,1783035042000,-67704.7920274,0.00029,2]
[426940911,1783035042000,-500.0,0.00029,7]
[426940912,1783035042000,-500.0,0.00029,7]
[426940916,1783035042000,-548.16,0.0002904,2]
[426940993,1783035043000,-12500.0,0.000305,2]
[426940999,1783035043000,-153.0,0.00030715,7]
[426940997,1783035043000,-431.29922464,0.0003064,2]
[426940995,1783035043000,-200.0,0.0003054,2]
[426940994,1783035043000,-12500.0,0.000305,2]
[426940988,1783035043000,-800.0,0.000305,2]
[426940989,1783035043000,-800.0,0.000305,2]
[426940991,1783035043000,-800.0,0.000305,2]
[426940985,1783035043000,-216.6671885,0.00030417,2]
[426941001,1783035043000,-242.33,0.00030746,30]
[426940992,1783035043000,-800.0,0.000305,2]
[426940998,1783035043000,-242.13173095,0.00030642,3]
[426941011,1783035043000,-8416.86317064,0.00031,7]
[426940996,1783035043000,-287.59795546,0.00030573,7]
[426941003,1783035043000,-500.0,0.00030749,120]
[426941002,1783035043000,-500.0,0.00030749,120]
[426941004,1783035043000,-12500.0,0.0003075,2]
[426941005,1783035043000,-150.0,0.00030841,2]
[426941006,1783035043000,-190.2042748,0.00030885,2]
[426941008,1783035043000,-500.0,0.00030999,120]
[426941010,1783035043000,-500.0,0.00030999,7]
[426941009,1783035043000,-1000.0,0.00030999,2]
[426941012,1783035043000,-800.0,0.00031,2]
[426941007,1783035043000,-241.0,0.00030933,10]
[426940986,1783035043000,-242.33,0.00030441,30]
[426941000,1783035043000,-152.0,0.00030715,7]
[426940984,1783035043000,-601.84,0.0003037,115]
[426940960,1783035043000,-800.0,0.0003,2]
[426940982,1783035043000,-4130.7,0.0003037,30]
[426941015,1783035043000,-12500.0,0.00031,2]